bitfinex-derivatives/quotes_ETHF0:USTF0_20250106
["timestamp","ask_amount","ask_price","bid_price","bid_amount"]
[1736124112431,0.24778,3632.8,3632.5,0.2478]
[1736124112633,7.57561862,3633.0,3632.5,0.2478]
[1736124112834,0.24779,3632.7,3632.5,0.2478]
[1736124113337,0.24778,3632.9,3632.4,0.4087]
[1736124113633,0.24778,3632.9,3632.7,0.24778]
[1736124114437,5.42436793,3633.0,3632.4,0.4087]
[1736124114741,0.2478,3632.5,3632.4,0.4087]
[1736124115139,5.42436793,3633.0,3632.4,0.4087]
[1736124115338,0.24779,3632.7,3632.4,0.65651]
[1736124115747,0.24779,3632.6,3632.4,0.65651]
[1736124116041,0.24779,3632.7,3632.4,0.65651]
[1736124116242,0.24779,3632.6,3632.4,0.65651]
[1736124119041,2.15125069,3632.8,3632.7,0.24779]
[1736124120234,0.12055069,3632.8,3632.7,1.35379]
[1736124120439,4.29204271,3633.2,3632.7,1.106]
[1736124120639,4.29204271,3633.2,3633.1,2.46432793]
[1736124121246,3.23838134,3633.6,3633.4,0.24774]
[1736124121446,0.24774,3633.5,3633.2,0.24775]
[1736124121743,3.23838134,3633.6,3633.0,38.9078]
[1736124121944,0.24774,3633.4,3633.1,0.24775]
[1736124122134,0.24774,3633.4,3633.3,4.32302059]
[1736124122645,0.67144,3633.4,3633.3,4.32302059]
[1736124123334,0.67144,3633.4,3633.1,6.48453088]
[1736124123533,0.67144,3633.4,3632.7,4.32302059]
[1736124123534,0.4237,3633.4,3632.7,4.32302059]
[1736124123940,0.24776,3633.1,3632.8,0.24778]
[1736124124240,0.4474,3633.0,3632.8,0.24778]
[1736124124437,0.4474,3633.0,3632.9,0.24777]
[1736124124637,3.6432,3633.5,3632.8,2.21656793]
[1736124124638,7.93524271,3633.5,3632.8,2.21656793]
[1736124124839,4.72744271,3633.5,3633.4,0.24774]
[1736124126245,0.4354,3633.5,3633.4,0.24774]
[1736124128045,0.4354,3633.5,3633.3,4.32302059]
[1736124128046,3.2078,3633.9,3633.3,4.32302059]
[1736124128345,4.29204271,3634.1,3633.5,0.24773]
[1736124128549,4.29204271,3634.1,3634.0,0.2477]
[1736124128846,4.29204271,3634.1,3633.4,5.76806793]
[1736124128847,4.29204271,3634.1,3633.9,0.2477]
[1736124129049,4.53973271,3634.2,3633.9,0.2477]
[1736124129751,4.29204271,3634.2,3633.4,10.09108852]
[1736124129940,0.24769,3634.1,3633.8,0.24771]
[1736124130144,4.53973271,3634.2,3633.9,0.2477]
[1736124130654,0.24769,3634.2,3633.9,0.2477]
[1736124130950,3.2078,3634.3,3633.6,4.32302059]
[1736124131146,3.2078,3634.3,3634.0,0.2477]
[1736124132347,3.2078,3634.3,3633.7,2.66636793]
[1736124132944,3.2078,3634.3,3633.7,6.98938852]
[1736124133953,3.2078,3634.3,3633.7,4.77282059]
[1736124134351,0.24771,3633.8,3633.7,4.32302059]
[1736124135455,0.24772,3633.7,3633.4,1.35274]
[1736124135654,0.4285,3633.6,3633.4,1.35274]
[1736124136356,0.4285,3633.6,3633.2,7.53082059]
[1736124136553,0.24775,3633.3,3633.2,4.32302059]
[1736124136752,4.32713,3633.6,3633.3,0.24774]
[1736124137056,0.67623,3633.6,3633.3,0.24774]
[1736124137952,0.4285,3633.6,3633.4,0.24774]
[1736124138361,0.4285,3633.6,3633.0,4.32302059]
[1736124138362,0.4265,3633.7,3633.6,0.24773]
[1736124138557,3.2078,3634.1,3633.6,1.105]
[1736124138864,4.29204271,3634.2,3633.7,1.2032]
[1736124139151,4.29204271,3634.2,3633.7,36.9032]
[1736124139460,0.24768,3634.3,3633.7,0.24772]
[1736124139461,0.2477,3634.0,3633.7,0.24772]
[1736124139659,3.2078,3634.1,3633.6,3.2078]
[1736124139660,0.4115,3633.9,3633.6,3.2078]
[1736124139952,0.4115,3633.9,3633.2,7.53082059]
[1736124140156,0.24772,3633.7,3633.4,0.24774]
[1736124140352,0.431,3633.8,3633.4,0.24774]
[1736124140555,0.431,3633.8,3633.5,0.24773]
[1736124140758,0.24772,3633.7,3633.5,0.24773]
[1736124141059,0.24772,3633.7,3633.4,0.24774]
[1736124141259,0.431,3633.8,3633.3,6.53958852]
[1736124141462,0.431,3633.8,3633.7,0.24772]
[1736124141756,0.4115,3633.9,3633.8,0.24771]
[1736124142954,0.65921,3633.9,3633.7,0.24772]
[1736124143159,0.65921,3633.9,3633.6,4.32302059]
[1736124143160,0.24772,3633.7,3633.6,4.32302059]
[1736124144060,0.24775,3633.3,3633.2,4.32302059]
[1736124144456,3.45555,3633.3,3633.2,4.32302059]
[1736124144758,3.45555,3633.3,3633.2,0.2194206]
[1736124145360,0.24776,3633.1,3633.0,5.80803088]
[1736124145660,0.24776,3633.1,3632.3,5.80803088]
[1736124145661,0.24781,3632.4,3632.3,5.80803088]
[1736124146755,0.4391,3632.7,3632.3,5.80803088]
[1736124146950,5.42436793,3632.8,3632.3,5.80803088]
[1736124146951,3.2078,3632.8,3632.3,5.80803088]
[1736124147153,3.2078,3632.8,3632.5,0.2478]
[1736124147455,3.45558,3632.8,3632.6,0.4324]
[1736124148757,3.2078,3632.8,3632.7,0.24779]
[1736124150956,3.2078,3632.8,3632.6,0.4324]
[1736124151254,3.45558,3632.8,3632.6,0.4324]
[1736124152665,0.24779,3632.7,3632.6,0.4324]
[1736124153457,3.2078,3632.8,3632.3,3.2078]
[1736124153658,0.24781,3632.4,3632.3,3.2078]
[1736124154363,5.42436793,3632.8,3632.0,0.4307]
[1736124154656,3.2078,3632.4,3632.0,0.4307]
[1736124154859,0.24783,3632.0,3631.9,0.4258]
[1736124155057,0.24782,3632.2,3631.5,12.44082463]
[1736124155252,1.303,3632.3,3631.5,12.60535463]
[1736124155457,3.2078,3632.4,3631.8,2.21656793]
[1736124155662,3.2078,3632.4,3632.3,0.24781]
[1736124155864,0.2478,3632.6,3632.2,0.24782]
[1736124156163,0.2478,3632.5,3632.3,0.8431]
[1736124156357,0.2478,3632.6,3632.3,0.8431]
[1736124156761,0.2478,3632.5,3632.3,0.8431]
[1736124157157,0.24779,3632.7,3632.3,0.8431]
[1736124157357,3.2078,3632.9,3632.3,1.09091]
[1736124157558,0.2478,3632.6,3632.3,1.09091]
[1736124157760,0.24779,3632.7,3632.3,1.09091]
[1736124157964,3.2078,3632.9,3632.3,1.09091]
[1736124158359,3.2078,3632.9,3632.3,0.8431]
[1736124159265,0.2478,3632.5,3632.3,0.8431]
[1736124159860,0.24778,3632.8,3632.3,0.8431]
[1736124160060,0.24778,3632.8,3631.5,5.42436793]
[1736124160061,0.24783,3632.2,3631.5,5.42436793]
[1736124160266,3.2078,3632.4,3631.9,0.4367]
[1736124160661,0.24783,3632.1,3631.9,0.4367]
[1736124161568,4.038,3632.4,3631.9,0.4367]
[1736124161768,0.24783,3632.1,3631.9,0.4367]
[1736124162968,5.42436793,3632.8,3631.9,0.4367]
[1736124163161,0.2478,3632.6,3632.0,0.24783]
[1736124163469,0.2478,3632.6,3632.2,0.24782]
[1736124163861,0.2478,3632.5,3632.3,0.4066]
[1736124164457,3.2078,3632.8,3632.3,0.4066]
[1736124164767,0.24779,3632.7,3632.4,0.2478]
[1736124165759,2.21656793,3633.1,3632.3,0.4066]
[1736124165963,0.2478,3632.5,3632.3,0.4066]
[1736124166765,0.24779,3632.7,3632.5,0.2478]
[1736124167161,0.24779,3632.7,3632.6,0.4208]
[1736124170868,3.2078,3632.8,3632.3,0.4066]
[1736124171064,3.2078,3632.4,3632.0,0.4154]
[1736124171272,0.24783,3632.1,3632.0,0.4154]
[1736124172168,0.24782,3632.2,3632.0,0.4154]
[1736124172371,0.24783,3632.2,3632.0,0.4154]
[1736124172565,0.24783,3632.1,3632.0,0.4154]
[1736124173564,3.2078,3632.4,3632.0,0.4154]
[1736124173761,3.2078,3632.4,3632.3,0.24781]
[1736124174272,3.2078,3632.4,3632.3,0.67501]
[1736124174962,3.45561,3632.4,3632.3,0.4272]
[1736124175365,3.45561,3632.4,3632.0,0.4154]
[1736124175366,0.24783,3632.2,3632.0,0.4154]
[1736124175769,0.24783,3632.1,3632.0,0.4154]
[1736124176071,3.2078,3632.4,3632.0,0.4154]
[1736124176272,0.24782,3632.3,3632.0,0.66323]
[1736124176773,3.2078,3632.4,3632.3,0.24781]
[1736124179175,3.2078,3632.4,3632.3,0.67131]
[1736124181871,3.2078,3633.0,3632.9,0.24777]
[1736124182072,3.2078,3633.0,3632.7,3.32356793]
[1736124182375,3.45557,3633.0,3632.8,0.4283]
[1736124182575,0.24777,3633.0,3632.8,0.4283]
[1736124182880,0.24776,3633.2,3632.9,0.24777]
[1736124183884,0.24775,3633.2,3632.9,0.24777]
[1736124184678,3.2078,3633.4,3632.8,0.4283]
[1736124184873,0.24776,3633.2,3632.9,0.24777]
[1736124185266,0.24777,3633.0,3632.8,0.67608]
[1736124186177,0.24775,3633.2,3632.9,0.24777]
[1736124186775,0.24776,3633.1,3632.8,0.67608]
[1736124188281,6.44249846,3633.4,3632.8,0.4283]
[1736124188478,0.67197,3633.0,3632.7,1.35478]
[1736124188777,0.4242,3633.0,3632.7,1.35478]
[1736124189075,0.24778,3632.8,3632.7,1.107]
[1736124189280,0.4232,3632.9,3632.2,8.55445463]
[1736124189477,0.24781,3632.3,3632.2,8.55445463]
[1736124190375,0.24781,3632.3,3632.1,0.4478]
[1736124190681,0.24781,3632.3,3632.1,0.69563]
[1736124191275,0.24781,3632.4,3632.2,0.24782]
[1736124191979,6.44249846,3632.6,3632.1,0.4478]
[1736124192176,6.44249846,3632.6,3632.5,0.2478]
[1736124192177,3.23469846,3632.6,3632.5,0.2478]
[1736124192783,3.23469846,3632.6,3632.5,35.9478]
[1736124192979,3.23469846,3632.6,3632.1,3.28394793]
[1736124192980,3.23469846,3632.9,3632.4,2.21656793]
[1736124193176,3.23469846,3632.9,3632.8,0.24778]
[1736124194480,3.2078,3633.2,3633.1,0.24776]
[1736124194975,3.2078,3633.2,3632.8,0.4145]
[1736124195182,3.23469846,3633.3,3633.1,0.24776]
[1736124195481,3.23469846,3633.3,3633.1,0.24775]
[1736124195775,3.23469846,3633.3,3632.8,0.4145]
[1736124195983,0.24775,3633.2,3632.9,0.67657]
[1736124196186,0.24775,3633.2,3633.0,0.24777]
[1736124196481,3.90134846,3633.4,3633.1,0.24776]
[1736124197982,3.90134846,3633.4,3633.2,0.24775]
[1736124198680,3.23469846,3633.5,3632.9,1.5358]
[1736124199279,0.24774,3633.4,3633.1,0.24776]
[1736124200572,3.2078,3633.6,3633.0,4.65458404]
[1736124200777,0.24775,3633.3,3633.1,0.24776]
[1736124201480,3.2078,3633.6,3633.1,0.24776]
[1736124201481,0.24774,3633.4,3633.1,0.24776]
[1736124202279,0.24775,3633.3,3633.1,0.24776]
[1736124202478,6.44249846,3633.6,3632.9,0.4288]
[1736124202479,0.24776,3633.1,3632.9,0.4288]
[1736124203184,1.2843,3633.2,3632.8,0.4145]
[1736124203185,0.24777,3632.9,3632.8,0.4145]
[1736124206686,0.24778,3632.8,3632.7,3.2078]
[1736124207290,0.24778,3632.9,3632.7,3.2078]
[1736124207484,0.24778,3632.9,3632.6,0.66409]
[1736124207485,0.24779,3632.6,3632.5,6.48394349]
[1736124207691,3.2078,3632.8,3632.3,6.48394349]
[1736124207887,0.24781,3632.4,3632.3,6.48394349]
[1736124208195,3.45561,3632.4,3632.3,6.48394349]
[1736124208695,4.72661,3632.4,3632.3,6.48394349]
[1736124209089,4.72661,3632.4,3631.8,0.24785]
[1736124209090,7.71349846,3632.4,3631.8,0.24785]
[1736124209395,0.24783,3632.1,3631.8,0.24785]
[1736124209699,7.71349846,3632.4,3631.5,6.91944349]
[1736124209998,0.24785,3631.9,3631.6,0.65676]
[1736124210496,0.24785,3631.9,3631.5,6.91944349]
[1736124210497,0.24786,3631.6,3631.5,6.91944349]
[1736124210697,3.45566,3631.7,3631.5,6.91944349]
[1736124211291,3.2078,3631.7,3631.5,6.91944349]
[1736124211688,3.45566,3631.7,3631.5,6.48394349]
[1736124211888,3.45566,3631.7,3631.3,0.24788]
[1736124212092,4.29506,3631.7,3631.3,0.24788]
[1736124213899,4.29506,3631.7,3631.4,0.24788]
[1736124214098,4.0472,3631.7,3631.2,3.6413]
[1736124214299,3.6335,3631.7,3631.4,0.24788]
[1736124214500,3.2078,3631.7,3631.4,0.24788]
[1736124214902,3.45566,3631.7,3631.4,0.24788]
[1736124216199,3.45566,3631.7,3631.2,3.6413]
[1736124216393,3.45566,3631.7,3631.3,0.24788]
[1736124216904,0.24786,3631.7,3631.3,0.24788]
[1736124217898,3.45563,3632.1,3631.5,2.21656793]
[1736124218098,0.24785,3631.8,3631.2,5.85786793]
[1736124218503,0.24785,3631.8,3631.4,0.24787]
[1736124219103,0.24785,3631.8,3631.2,5.85786793]
[1736124219301,3.2078,3632.1,3631.5,2.21656793]
[1736124219495,3.2078,3632.1,3631.9,0.24784]
[1736124219699,3.2078,3632.1,3632.0,0.8397]
[1736124220304,3.45563,3632.1,3632.0,0.8397]
[1736124220505,3.2078,3632.1,3632.0,0.8397]
[1736124220701,6.86269846,3632.5,3632.0,0.8397]
[1736124220896,0.24782,3632.2,3632.0,0.8397]
[1736124221309,3.2078,3632.5,3632.0,0.8397]
[1736124221609,3.2078,3632.5,3632.1,0.24782]
[1736124221610,3.45561,3632.5,3632.1,0.24782]
[1736124222107,0.24781,3632.4,3632.1,0.24782]
[1736124222700,3.2078,3632.5,3632.0,0.8397]
[1736124223012,3.2078,3632.5,3632.4,0.24781]
[1736124223209,3.2078,3632.9,3632.4,2.21656793]
[1736124223413,3.23469846,3633.1,3632.5,0.4392]
[1736124223613,0.24777,3633.0,3632.6,0.24779]
[1736124223808,0.24777,3633.0,3632.7,0.4381]
[1736124224015,0.24778,3632.9,3632.7,0.4381]
[1736124224408,0.24777,3633.0,3632.7,0.68588]
[1736124225516,3.2078,3633.3,3632.7,0.4381]
[1736124225714,0.24776,3633.1,3632.8,0.24778]
[1736124225911,3.45555,3633.3,3632.7,0.4381]
[1736124226107,3.2078,3633.3,3632.7,2.65466793]
[1736124226308,3.2078,3633.3,3633.1,0.24776]
[1736124226508,3.2078,3633.3,3633.2,0.4347]
[1736124227107,3.45555,3633.3,3633.2,0.4347]
[1736124228316,3.2078,3633.3,3633.2,0.4347]
[1736124228715,3.45555,3633.3,3633.2,0.4347]
[1736124229108,3.2078,3633.3,3633.2,0.4347]
[1736124229412,3.2078,3633.3,3633.2,0.68245]
[1736124230516,3.2078,3633.3,3633.2,0.4347]
[1736124230915,3.2078,3633.3,3632.8,3.2078]
[1736124231115,3.2078,3633.3,3633.1,0.24776]
[1736124232218,3.2078,3633.9,3633.6,0.24772]
[1736124232520,3.2078,3633.9,3633.7,0.8608]
[1736124232716,3.45551,3633.9,3633.7,0.8608]
[1736124232920,0.24771,3633.8,3633.7,0.8608]
[1736124234131,3.45551,3633.9,3633.7,0.8608]
[1736124234714,3.2078,3633.9,3633.7,0.8608]
[1736124234923,3.2078,3633.9,3633.8,0.24771]
[1736124235426,3.2078,3633.9,3633.7,1.10851]
[1736124236223,3.2078,3633.9,3633.7,0.8608]
[1736124236622,3.2078,3633.9,3633.7,1.10852]
[1736124236823,3.2078,3634.3,3633.7,1.10852]
[1736124237025,0.24771,3633.9,3633.7,1.10852]
[1736124237825,0.24771,3633.8,3633.7,0.8608]
[1736124238125,5.42436793,3634.3,3633.7,0.8608]
[1736124238628,0.24771,3633.8,3633.7,0.8608]
[1736124241633,0.24773,3633.5,3633.2,3.45555]
[1736124241931,3.2078,3633.9,3633.2,3.2078]
[1736124241932,0.4372,3633.7,3633.2,3.2078]
[1736124242137,0.24773,3633.6,3633.2,3.2078]
[1736124242437,0.24773,3633.6,3633.3,0.24775]
[1736124242634,0.4372,3633.7,3633.2,3.2078]
[1736124242829,0.8757,3634.2,3633.9,0.2477]
[1736124243032,1.12339,3634.2,3633.9,0.2477]
[1736124243829,0.8757,3634.2,3633.9,0.2477]
[1736124244036,0.2477,3634.0,3633.8,0.24771]
[1736124244235,0.8757,3634.2,3633.8,0.69621]
[1736124244423,0.2477,3634.1,3633.8,0.69621]
[1736124244823,0.2477,3634.1,3633.8,0.4485]
[1736124245031,0.2477,3634.1,3633.8,0.69621]
[1736124245231,0.8757,3634.2,3633.8,0.69621]
[1736124245528,0.2477,3634.1,3633.8,0.69621]
[1736124246234,3.6562,3634.4,3633.8,0.4485]
[1736124246432,3.6562,3634.4,3633.9,0.2477]
[1736124246732,3.6562,3634.4,3633.8,0.4485]
[1736124246733,3.6562,3634.4,3634.0,0.24769]
[1736124246935,0.24769,3634.2,3634.0,0.24769]
[1736124247530,0.8912,3634.6,3633.9,2.21656793]
[1736124247836,3.75452103,3634.7,3634.5,0.24766]
[1736124248036,3.75452103,3634.7,3634.0,3.2078]
[1736124248037,3.75452103,3634.7,3634.4,0.24767]
[1736124248339,3.75452103,3634.7,3634.5,0.8213]
[1736124248535,3.50687103,3634.7,3634.5,0.8213]
[1736124248729,3.50687103,3634.7,3634.5,1.06896]
[1736124249134,3.50687103,3634.7,3634.0,39.3553]
[1736124249135,3.50687103,3634.7,3634.4,0.24767]
[1736124249338,0.24766,3634.6,3634.5,0.4083]
[1736124249533,0.24766,3634.6,3634.4,0.24767]
[1736124250334,3.50687103,3634.7,3634.2,0.4083]
[1736124250534,0.24766,3634.6,3634.3,0.24768]
[1736124251139,0.24766,3634.5,3634.3,0.24768]
[1736124251343,0.24766,3634.5,3634.2,0.65598]
[1736124251736,3.50687103,3634.7,3634.2,0.4083]
[1736124251934,0.24768,3634.3,3634.2,0.4083]
[1736124252834,3.2078,3634.5,3634.2,0.4083]
[1736124253040,3.2078,3634.5,3634.4,0.24767]
[1736124253236,3.2078,3634.5,3634.2,0.4083]
[1736124253542,3.45547,3634.5,3634.2,0.65598]
[1736124253729,0.24767,3634.5,3634.2,0.4083]
[1736124253933,3.50687103,3634.7,3634.2,2.62486793]
[1736124254138,0.4295,3634.9,3634.5,0.24766]
[1736124254339,0.24765,3634.7,3634.5,0.24766]
[1736124255134,0.24765,3634.7,3634.3,1.099]
[1736124255135,0.24765,3634.8,3634.3,1.099]
[1736124255335,0.24765,3634.7,3634.3,1.099]
[1736124255840,0.24765,3634.7,3634.4,0.24767]
[1736124256142,0.24765,3634.7,3634.4,0.66677]
[1736124256539,3.2078,3635.1,3634.5,2.21656793]
[1736124256734,3.2078,3635.1,3635.0,0.24763]
[1736124256932,3.2078,3635.7,3635.0,1.099]
[1736124257231,3.2078,3635.7,3635.6,0.24759]
[1736124257637,3.2078,3635.7,3635.6,0.68499]
[1736124257835,3.2078,3635.7,3635.6,0.4374]
[1736124258041,0.24758,3635.9,3635.6,0.68499]
[1736124258238,0.24758,3635.9,3635.7,0.4489]
[1736124258438,3.2078,3636.3,3635.7,0.4489]
[1736124258944,0.24757,3636.0,3635.7,0.4489]
[1736124259546,0.24758,3635.8,3635.7,0.4489]
[1736124261044,3.45537,3635.9,3635.7,0.4489]
[1736124261245,3.2078,3635.9,3635.7,0.4489]
[1736124261543,3.2078,3636.3,3635.7,0.4489]
[1736124261743,0.24755,3636.2,3635.8,0.24757]
[1736124262041,3.2078,3636.3,3636.2,0.24755]
[1736124263743,3.2078,3636.3,3636.0,0.24756]
[1736124263947,3.2078,3636.3,3636.1,0.24755]
[1736124264643,3.2078,3636.3,3635.8,2.62706793]
[1736124264946,3.45534,3636.3,3636.0,0.24756]
[1736124265145,3.2078,3636.3,3636.1,0.24755]
[1736124265646,3.2078,3636.3,3635.8,2.62706793]
[1736124266035,3.2078,3636.3,3636.0,0.24756]
[1736124266443,3.2078,3636.3,3635.8,2.62706793]
[1736124266743,3.2078,3636.3,3636.1,0.24755]
[1736124266942,3.2078,3636.3,3635.8,2.62706793]
[1736124267140,3.2078,3636.3,3636.2,0.24755]
[1736124267537,3.2078,3636.3,3636.1,1.095]
[1736124267737,3.2078,3636.3,3636.1,1.34255]
[1736124267938,0.24755,3636.2,3635.8,1.75307]
[1736124268143,3.6511,3636.3,3635.7,0.4489]
[1736124268346,0.24756,3636.1,3635.7,0.69648]
[1736124269533,0.24756,3636.1,3635.8,0.24758]
[1736124269741,0.24756,3636.1,3635.7,0.69648]
[1736124271349,0.24756,3636.0,3635.7,0.69648]
[1736124272147,0.24756,3636.0,3635.2,2.21656793]
[1736124272148,0.8625,3636.2,3635.2,2.21656793]
[1736124272355,0.24758,3635.8,3635.4,3.4554]
[1736124272650,0.8625,3636.2,3635.4,3.4554]
[1736124273345,0.8625,3636.2,3635.4,3.2078]
[1736124273950,0.24757,3635.9,3635.6,0.24759]
[1736124274151,0.8625,3636.2,3635.4,3.2078]
[1736124274352,0.8625,3636.2,3635.5,0.24759]
[1736124274648,0.24757,3636.0,3635.6,0.24759]
[1736124274852,0.8625,3636.2,3635.4,3.2078]
[1736124274853,0.8625,3636.2,3635.7,0.4488]
[1736124275055,0.24757,3635.9,3635.8,0.4163]
[1736124275248,3.6511,3636.3,3635.8,2.63286793]
[1736124275249,3.2078,3636.3,3635.8,2.63286793]
[1736124275647,3.2078,3636.3,3636.1,0.24755]
[1736124276451,3.2078,3636.3,3636.2,0.24755]
[1736124277554,0.67971,3636.9,3636.2,3.2078]
[1736124278057,3.6141,3637.1,3636.2,3.2078]
[1736124278258,0.2475,3637.0,3636.7,0.24751]
[1736124278564,3.2078,3637.1,3636.8,0.4242]
[1736124278755,3.2078,3637.1,3636.9,0.2475]
[1736124279056,3.2078,3637.1,3636.8,0.67171]
[1736124279057,3.45529,3637.1,3636.8,0.67171]
[1736124279251,3.2078,3637.1,3637.0,0.24749]
[1736124279647,3.2078,3637.1,3637.0,2.46405793]
[1736124279853,0.87,3637.9,3637.4,0.24746]
[1736124279854,0.24744,3637.8,3637.4,0.24746]
[1736124280054,0.24744,3637.8,3637.5,0.8334]
[1736124280443,0.87,3637.9,3637.5,0.8334]
[1736124280649,0.24745,3637.6,3637.5,0.8334]
[1736124281354,0.24748,3637.3,3636.9,0.2475]
[1736124281562,0.24748,3637.3,3637.0,0.4368]
[1736124281754,0.24748,3637.2,3637.0,0.4368]
[1736124281954,3.2078,3637.7,3637.0,0.4368]
[1736124281955,0.24748,3637.3,3637.0,0.4368]
[1736124282460,3.2078,3637.7,3637.1,35.7]
[1736124282654,2.21656793,3637.8,3636.7,2.63426793]
[1736124282655,3.2078,3637.2,3636.7,2.63426793]
[1736124282861,3.2078,3637.2,3636.7,0.4177]
[1736124283361,0.24749,3637.2,3636.8,0.24751]
[1736124283563,0.24749,3637.1,3636.8,0.24751]
[1736124283862,3.2078,3637.2,3636.7,0.4177]
[1736124284154,0.2475,3637.0,3636.7,0.4177]
[1736124284360,0.24751,3636.9,3636.7,0.4177]
[1736124285956,0.8924,3637.1,3636.7,0.4177]
[1736124286154,0.24751,3636.8,3636.7,0.4177]
[1736124286348,0.24751,3636.8,3636.1,5.42436793]
[1736124286349,3.2078,3636.8,3636.3,1.34254]
[1736124286555,0.24754,3636.3,3636.2,0.8785]
[1736124286754,0.24754,3636.3,3635.7,3.2078]
[1736124286755,0.24758,3635.9,3635.7,3.2078]
[1736124286960,0.4243,3636.2,3635.7,3.2078]
[1736124287157,0.24759,3635.7,3635.5,6.26632919]
[1736124287849,0.24759,3635.7,3635.5,5.17132919]
[1736124288361,0.24759,3635.7,3635.5,0.8785]
[1736124288556,0.24759,3635.6,3635.5,0.4364]
[1736124288758,0.2476,3635.5,3635.2,3.2078]
[1736124288959,0.2476,3635.5,3635.2,3.45542]
[1736124289762,0.4407,3635.7,3635.2,3.2078]
[1736124290063,0.24759,3635.6,3635.3,0.24761]
[1736124290961,0.24759,3635.6,3635.2,3.45541]
[1736124291662,0.24761,3635.4,3635.2,3.2078]
[1736124292252,0.24761,3635.4,3635.1,0.4446]
[1736124292253,0.4407,3635.7,3635.1,0.4446]
[1736124292859,0.24762,3635.2,3635.1,0.4446]
[1736124293265,0.24761,3635.3,3635.1,0.4446]
[1736124294656,0.24762,3635.2,3635.1,0.4446]
[1736124294861,0.24761,3635.3,3635.1,0.4446]
[1736124295563,3.2078,3635.4,3634.7,0.4328]
[1736124295762,0.24764,3634.8,3634.7,0.4328]
[1736124297162,3.2078,3634.9,3634.2,0.24768]
[1736124297361,0.24766,3634.6,3634.3,0.4501]
[1736124297863,0.24767,3634.5,3634.3,0.4501]
[1736124298963,0.24766,3634.6,3634.3,0.4501]
[1736124299268,0.24765,3634.8,3634.5,0.24766]
[1736124300459,3.2078,3634.9,3634.3,0.4501]
[1736124300663,0.24764,3634.8,3634.3,0.4501]
[1736124300863,0.24765,3634.7,3634.3,0.4501]
[1736124301067,0.24765,3634.7,3634.4,0.24767]
[1736124301465,3.2078,3634.9,3634.3,0.4501]
[1736124301665,0.24765,3634.7,3634.3,0.69777]
[1736124302167,3.2078,3634.9,3634.0,38.9078]
[1736124302168,2.21656793,3634.8,3634.0,38.9078]
[1736124302464,0.24768,3634.3,3634.0,38.9078]
[1736124302670,0.24771,3633.9,3633.8,0.8706]
[1736124303168,3.2078,3634.4,3633.8,36.5706]
[1736124303470,0.24769,3634.2,3633.8,36.81831]
[1736124303766,3.2078,3634.4,3633.8,1.11831]
[1736124303969,0.2477,3634.0,3633.8,0.8706]
[1736124304179,0.24771,3633.9,3633.8,0.8706]
[1736124304373,3.2078,3634.0,3633.5,35.7]
[1736124304575,0.24771,3633.9,3633.6,0.4441]
[1736124305167,3.2078,3634.0,3633.6,0.4441]
[1736124305473,0.24771,3633.9,3633.6,0.4441]
[1736124305673,3.2078,3634.0,3633.6,0.4441]
[1736124305867,3.2078,3634.0,3633.9,0.24771]
[1736124306572,3.2078,3634.4,3634.2,0.24768]
[1736124306769,3.2078,3634.4,3634.3,0.8764]
[1736124307366,3.2078,3634.8,3634.7,0.24765]
[1736124307575,2.15184972,3635.0,3634.9,0.24764]
[1736124307766,7.74745271,3635.4,3634.8,0.4373]
[1736124307767,5.60725972,3635.4,3634.8,0.4373]
[1736124308165,0.24762,3635.3,3634.8,0.4373]
[1736124308367,5.35964972,3635.4,3634.9,0.24763]
[1736124308573,0.24762,3635.2,3634.8,0.24764]
[1736124309670,0.24764,3634.9,3634.6,0.24765]
[1736124309974,0.24763,3635.1,3634.5,1.093]
[1736124310176,3.2078,3635.4,3634.5,1.093]
[1736124310365,0.24762,3635.3,3635.0,0.24763]
[1736124310570,3.45541,3635.4,3635.1,0.24762]
[1736124310771,3.2078,3635.4,3634.7,2.21656793]
[1736124311076,3.2078,3635.4,3635.3,0.24761]
[1736124311775,3.45538,3635.8,3635.4,0.2476]
[1736124312576,0.24758,3635.7,3635.3,0.24761]
[1736124314066,0.24759,3635.6,3635.3,0.24761]
[1736124314265,0.24759,3635.6,3635.1,0.8251]
[1736124314574,2.21656793,3635.7,3635.1,0.8251]
[1736124314771,0.24761,3635.3,3635.1,0.8251]
[1736124315070,3.2078,3635.3,3634.8,1.093]
[1736124315279,0.24763,3635.0,3634.8,1.093]
[1736124315474,1.2637,3635.2,3634.8,1.093]
[1736124315874,1.2637,3635.2,3634.6,3.2078]
[1736124316089,1.2637,3635.2,3634.5,0.8481]
[1736124316090,0.24766,3634.6,3634.5,0.8481]
[1736124316375,3.2078,3634.8,3634.5,0.8481]
[1736124316575,0.24766,3634.7,3634.5,0.8481]
[1736124317272,3.2078,3634.8,3634.5,0.8481]
[1736124317273,0.24766,3634.6,3634.5,0.4179]
[1736124317477,3.2078,3634.8,3634.2,1.093]
[1736124317478,0.24768,3634.4,3634.2,1.093]
[1736124317781,0.24769,3634.2,3634.1,0.4234]
[1736124318080,0.2477,3634.0,3633.9,0.4302]
[1736124318381,0.2477,3634.1,3633.9,0.4302]
[1736124319375,4.0553,3634.4,3633.9,0.4302]
[1736124319579,0.2477,3634.1,3633.9,0.4302]
[1736124320167,3.2078,3634.4,3634.2,0.24768]
[1736124320373,3.2078,3634.4,3633.9,0.4302]
[1736124320374,3.2078,3634.4,3634.3,0.24768]
[1736124320575,3.2078,3634.8,3634.6,0.24765]
[1736124320776,3.45545,3634.8,3634.7,0.4164]
[1736124323173,3.2078,3634.8,3634.7,0.4164]